bitfinex/quotes_ETHUSD_20211001
["timestamp","ask_amount","ask_price","bid_price","bid_amount"]
[1633052011097,0.00693505,3018.6,3018.5,1.74413937]
[1633052012498,0.00693505,3018.6,3018.5,1.25172166]
[1633052013701,0.00693505,3018.6,3018.5,2.81431655]
[1633052013900,0.00693505,3018.6,3018.5,3.26496084]
[1633052014302,0.00693505,3018.6,3018.5,4.55896084]
[1633052014503,0.006,3019.4,3018.5,4.55896084]
[1633052014504,12.12473871,3019.9,3018.6,5.6]
[1633052014702,12.12473871,3019.9,3018.5,6.40296374]
[1633052014703,1.44944843,3019.8,3018.5,6.40296374]
[1633052014902,1.79236357,3019.6,3019.3,0.77792657]
[1633052015103,1.79236357,3019.6,3019.0,0.003]
[1633052015303,1.44945266,3019.5,3019.1,3.31236]
[1633052015503,1.44945266,3019.5,3019.0,0.003]
[1633052016307,6.41870266,3019.5,3019.0,0.003]
[1633052016508,1.44940218,3019.4,3019.0,0.003]
[1633052016908,1.448616,3019.3,3019.0,0.003]
[1633052017111,1.79236357,3019.6,3019.0,0.003]
[1633052017312,1.44861461,3019.5,3019.3,0.77323022]
[1633052017508,1.44841187,3019.8,3019.3,0.77323022]
[1633052017707,1.4484061,3019.7,3019.1,0.63112406]
[1633052017907,11.557269,3019.9,3019.2,3.31223]
[1633052017908,1.44846642,3019.6,3019.2,3.31223]
[1633052018109,0.034769,3019.9,3019.2,3.31223]
[1633052018309,1.44841295,3019.8,3019.2,3.31223]
[1633052018711,1.44841295,3019.8,3019.2,0.81664055]
[1633052019309,1.44841295,3019.8,3019.0,9.003]
[1633052019513,1.44841295,3019.8,3019.0,8.003]
[1633052020310,1.44841295,3019.8,3019.1,0.88137466]
[1633052020512,6.26308,3019.5,3019.1,0.88137466]
[1633052020710,7.660119,3019.9,3019.1,0.88137466]
[1633052020912,1.44798804,3019.8,3019.0,0.003]
[1633052021913,4.96907,3019.5,3019.0,0.74372362]
[1633052022110,0.00087605,3019.7,3019.0,0.74372362]
[1633052022314,1.59688867,3019.6,3019.0,0.74372362]
[1633052022509,1.59688867,3019.6,3019.0,0.003]
[1633052022709,1.44785581,3019.5,3019.0,0.003]
[1633052022909,4.96944,3019.3,3019.0,0.003]
[1633052023112,4.96944,3019.3,3018.8,3.31253]
[1633052023113,4.96944,3019.3,3018.9,0.003]
[1633052024715,1.294,3019.1,3018.9,0.003]
[1633052024917,1.028769,3019.2,3018.9,0.003]
[1633052025113,0.00187086,3018.8,3018.6,0.003]
[1633052025316,1.44802877,3019.1,3018.6,0.003]
[1633052025715,4.97083,3018.9,3018.6,0.003]
[1633052025916,1.59169632,3018.5,3017.9,0.86941567]
[1633052026116,3.14639632,3018.5,3018.0,0.009]
[1633052026315,1.5547,3018.5,3018.0,0.009]
[1633052026717,1.5547,3018.5,3018.4,0.84604708]
[1633052026915,4.96945,3019.3,3018.4,0.84604708]
[1633052027116,4.96945,3019.3,3018.4,0.85204708]
[1633052027315,1.64630819,3019.1,3018.5,0.006]
[1633052028116,6.61625819,3019.1,3018.5,0.006]
[1633052030721,4.96945,3019.3,3018.5,0.006]
[1633052030917,17.7387983,3019.6,3018.5,0.006]
[1633052031116,1.44767892,3019.5,3018.5,0.006]
[1633052031717,4.97002,3019.0,3018.5,0.006]
[1633052032517,4.97002,3019.0,3018.6,0.25166859]
[1633052033018,1.47686288,3018.8,3018.7,0.003]
[1633052033618,0.028769,3019.1,3018.7,0.003]
[1633052034619,1.75777086,3018.8,3018.7,0.003]
[1633052034820,3.05177086,3018.8,3018.7,0.003]
[1633052035223,3.31325,3018.2,3018.0,0.003]
[1633052035424,4.62835,3018.2,3017.8,0.003]
[1633052035620,4.62835,3018.2,3017.5,0.003]
[1633052035820,1.8425191,3017.7,3017.4,0.006]
[1633052036020,4.62835,3018.2,3017.5,0.8095186]
[1633052036221,3.31325,3018.2,3018.0,0.71099961]
[1633052036620,3.31325,3018.2,3018.0,0.71399961]
[1633052037220,1.96945476,3018.1,3018.0,0.71399961]
[1633052037420,1.96945476,3018.1,3018.0,0.003]
[1633052037821,1.96945476,3018.1,3017.6,1.003]
[1633052038024,1.96945476,3018.1,3018.0,0.12602007]
[1633052038422,1.96945476,3018.1,3018.0,0.12902007]
[1633052039622,3.26345476,3018.1,3018.0,0.12902007]
[1633052039821,4.71568954,3018.1,3018.0,0.12902007]
[1633052040021,3.26345476,3018.1,3018.0,0.12902007]
[1633052040220,1.96945476,3018.1,3018.0,0.12902007]
[1633052040622,3.42216802,3018.1,3018.0,0.12902007]
[1633052040821,3.26345476,3018.1,3018.0,0.12902007]
[1633052041422,4.71617373,3018.1,3018.0,0.12902007]
[1633052042623,3.26345476,3018.1,3018.0,0.12902007]
[1633052042822,4.71012376,3018.1,3018.0,0.12902007]
[1633052043223,5.90032376,3018.1,3018.0,0.12902007]
[1633052044624,6.90032376,3018.1,3018.0,0.12902007]
[1633052047028,6.90032376,3018.1,3018.0,2.007e-05]
[1633052047029,10.60558362,3018.1,3018.0,2.007e-05]
[1633052047225,10.03547086,3018.1,3018.0,2.007e-05]
[1633052047426,10.03547086,3018.1,3016.5,0.003]
[1633052047427,6.92534859,3018.1,3016.6,0.00602007]
[1633052047625,6.92534859,3018.1,3016.5,0.003]
[1633052047626,0.5991223,3017.8,3016.3,0.00902007]
[1633052047825,1.89022911,3017.0,3016.4,1.87989785]
[1633052048227,1.89022911,3017.0,3016.5,0.7632154]
[1633052048626,1.89022911,3017.0,3016.6,0.00602007]
[1633052049628,6.86373911,3017.0,3016.6,0.00602007]
[1633052051030,1.59463515,3016.5,3016.1,0.00902007]
[1633052051631,0.19895043,3017.0,3016.1,0.00902007]
[1633052051632,0.19895043,3017.0,3016.2,0.96378147]
[1633052051832,4.97375,3016.8,3016.2,0.96378147]
[1633052052030,0.19895043,3017.0,3016.3,0.00902007]
[1633052052689,1.75423157,3016.6,3016.3,0.00902007]
[1633052052888,6.72834157,3016.6,3016.3,0.00902007]
[1633052053491,6.72834157,3016.6,3016.1,0.00902007]
[1633052054089,6.72834157,3016.6,3016.1,0.92908968]
[1633052054489,6.72834157,3016.6,3016.2,0.00902007]
[1633052055492,4.97411,3016.6,3016.2,0.00902007]
[1633052055694,4.9737,3016.9,3016.2,0.00902007]
[1633052056493,0.19895043,3017.0,3016.2,1.6606531]
[1633052056494,1.70896965,3016.7,3016.2,1.6606531]
[1633052056693,1.70896965,3016.7,3016.2,0.00902007]
[1633052056894,1.70896965,3016.7,3016.3,0.00902007]
[1633052058495,4.97351,3016.9,3016.3,0.00902007]
[1633052059395,4.97351,3016.9,3016.1,0.92006961]
[1633052059396,4.97351,3016.9,3016.2,0.00902007]
[1633052059996,1.92896903,3016.5,3016.2,0.00902007]
[1633052060196,1.0,3016.8,3016.2,0.00902007]
[1633052060397,0.19895043,3017.0,3016.2,0.00902007]
[1633052061202,3.51521713,3017.0,3016.2,0.00902007]
[1633052061400,6.63278,3016.6,3016.2,0.00902007]
[1633052061702,6.63278,3016.6,3016.2,2.007e-05]
[1633052061900,6.63278,3016.6,3016.1,0.00902007]
[1633052062102,6.63278,3016.6,3016.3,0.00902007]
[1633052062103,6.83165984,3016.6,3016.3,0.00902007]
[1633052062300,1.95530673,3016.5,3016.3,0.00902007]
[1633052062499,6.83165984,3016.6,3016.3,0.00902007]
[1633052062700,6.83165984,3016.6,3016.1,0.81298375]
[1633052062900,6.83165984,3016.6,3016.2,0.00902007]
[1633052063705,6.83165984,3016.6,3016.1,0.00902007]
[1633052063903,6.63278,3016.6,3016.3,0.05029445]
[1633052064300,8.44404142,3016.6,3016.4,0.00902007]
[1633052064703,11.76070342,3016.6,3016.4,0.00902007]
[1633052065504,11.744,3016.5,3016.4,0.00902007]
[1633052065705,3.860869,3016.5,3016.4,0.00902007]
[1633052065909,11.828142,3016.6,3016.5,1.06078529]
[1633052066106,11.828142,3016.6,3016.4,0.00902007]
[1633052066107,1.56914484,3017.1,3016.6,0.72644342]
[1633052066309,24.33675172,3017.6,3017.2,4.57191978]
[1633052066310,0.56911398,3017.4,3017.2,4.57191978]
[1633052066505,0.56911398,3017.4,3017.3,7.20941676]
[1633052066709,3.31325,3018.2,3017.6,3.31377]
[1633052066907,3.31325,3018.2,3017.8,0.079913]
[1633052067206,3.31325,3018.2,3018.0,1.294]
[1633052067405,2.48,3018.9,3018.1,21.05488469]
[1633052067704,2.48,3018.9,3018.6,0.076854]
[1633052067906,2.48,3018.9,3018.7,0.72431285]
[1633052068104,2.48,3018.9,3018.8,11.27457084]
[1633052068307,0.003,3019.5,3018.9,8.55]
[1633052068508,2.483,3019.0,3018.9,21.54240805]
[1633052068706,0.003,3019.5,3019.0,10.45]
[1633052068707,2.48,3019.4,3019.0,10.45]
[1633052068912,2.48,3019.4,3019.1,22.17351278]
[1633052069105,2.48,3019.4,3019.3,10.529913]
[1633052069106,2.38,3019.4,3019.3,10.529913]
[1633052069306,2.38,3019.4,3019.3,1.67890933]
[1633052069506,2.38,3019.4,3019.3,1.0]
[1633052069707,2.48,3019.4,3019.3,1.0]
[1633052069906,2.48,3019.4,3019.3,27.38]
[1633052070105,2.48,3019.4,3019.3,8.0]
[1633052070305,2.48,3019.4,3019.3,13.968]
[1633052070505,2.48,3019.4,3019.3,15.262]
[1633052070904,2.48,3019.4,3019.3,16.87076125]
[1633052071106,2.48,3019.4,3019.3,36.25076125]
[1633052073308,2.68113044,3019.4,3019.3,36.25076125]
[1633052073912,2.68113044,3019.4,3019.3,15.262]
[1633052074311,2.68113044,3019.4,3019.3,6.262]
[1633052074511,2.68113044,3019.4,3019.2,0.72614717]
[1633052074712,2.68113044,3019.4,3019.3,1.294]
[1633052074911,2.48173174,3019.4,3019.3,1.34353718]
[1633052075311,0.00173174,3019.4,3019.3,1.34353718]
[1633052075713,0.00173174,3019.4,3019.3,2.34353718]
[1633052075912,0.00173174,3019.4,3019.3,9.34353718]
[1633052076319,0.00173174,3019.4,3019.3,0.04953718]
[1633052076912,0.00173174,3019.4,3019.3,1.34353718]
[1633052077112,0.00173174,3019.4,3019.3,0.04953718]
[1633052077513,0.00173174,3019.4,3019.3,1.04953718]
[1633052077912,0.00173174,3019.4,3019.3,2.34353718]
[1633052078513,0.00173174,3019.4,3019.3,2.294]
[1633052078717,0.2011309,3019.4,3019.3,2.294]
[1633052078913,0.2011309,3019.4,3019.3,1.0]
[1633052079116,0.2011309,3019.4,3019.3,9.0]
[1633052079317,0.18960617,3019.4,3019.3,1.0]
[1633052079514,0.18960617,3019.4,3019.3,9.0]
[1633052080317,0.003,3019.5,3019.3,9.0]
[1633052080516,0.003,3019.5,3019.3,9.05443368]
[1633052081516,0.003,3019.5,3019.3,0.05443368]
[1633052082515,1.53005642,3019.4,3019.3,0.05443368]
[1633052084117,1.53005642,3019.4,3018.8,0.99357755]
[1633052084318,1.72455954,3019.4,3018.8,0.99357755]
[1633052084720,1.72455954,3019.4,3018.8,5.96215755]
[1633052084721,0.19450312,3019.4,3018.8,5.96215755]
[1633052085719,0.19450312,3019.4,3019.0,1.58583917]
[1633052085921,1.57606908,3019.5,3018.8,0.99357755]
[1633052086117,1.57606908,3019.5,3018.9,1.0544989]
[1633052086320,1.57606908,3019.5,3018.9,0.0544989]
[1633052087021,1.89561361,3019.0,3018.9,0.0544989]
[1633052087220,0.003,3019.5,3018.9,0.0544989]
[1633052088221,1.78062147,3019.2,3018.9,0.0544989]
[1633052088820,0.003,3019.5,3018.9,5.0230389]
[1633052089019,0.003,3019.5,3019.0,1.0]
[1633052089220,0.003,3019.5,3018.9,0.0544989]
[1633052089622,0.19447681,3019.4,3018.8,1.99357755]
[1633052090019,0.19447681,3019.4,3018.8,5.96219755]
[1633052090420,0.19447681,3019.4,3018.9,1.0]
[1633052090823,0.19447681,3019.4,3018.8,0.99357755]
[1633052091423,0.003,3019.5,3018.9,0.0544989]
[1633052091626,0.003,3019.5,3018.9,0.1150619]
[1633052091826,1.95409125,3019.2,3018.9,0.1150619]
[1633052092024,1.95409125,3019.2,3018.9,0.0544989]
[1633052092624,16.20160044,3018.6,3018.4,0.003]
[1633052092823,5.8,3018.5,3018.4,0.003]
[1633052093023,1.97998785,3018.5,3018.0,0.92338922]
[1633052093423,1.97998785,3018.5,3018.1,0.003]
[1633052093824,9.19364027,3018.6,3018.1,0.003]
[1633052095025,1.9710915,3018.5,3018.1,0.003]
[1633052095232,2.1926665,3018.5,3018.0,4.23959929]
[1633052095426,2.1926665,3018.5,3018.0,9.20957929]
[1633052095625,2.1926665,3018.5,3018.0,12.23959929]
[1633052095826,2.1926665,3018.5,3018.0,4.23959929]
[1633052096226,2.1926665,3018.5,3018.0,3.23959929]
[1633052096626,0.221575,3018.5,3018.2,4.96977]
[1633052096826,9.19364027,3018.6,3018.2,4.99721519]
[1633052097026,9.19364027,3018.6,3018.3,1.0]
[1633052097428,9.19364027,3018.6,3018.2,1.02744519]
[1633052097630,9.19364027,3018.6,3018.2,0.02744519]
[1633052097829,9.19364027,3018.6,3018.2,1.02744519]
[1633052098327,9.19364027,3018.6,3018.5,0.74507758]
[1633052100591,9.19364027,3018.6,3018.5,5.71452758]
[1633052100730,9.41525144,3018.6,3018.5,5.71452758]
[1633052102331,9.19364027,3018.6,3018.5,5.71452758]
[1633052102534,9.19364027,3018.6,3018.5,5.74192056]
[1633052102932,9.19364027,3018.6,3018.5,4.99684298]
[1633052103335,9.19364027,3018.6,3018.5,4.99695298]
[1633052104337,9.19364027,3018.6,3018.5,5.72807587]
[1633052104338,10.80629476,3018.6,3018.5,5.72807587]
[1633052104534,10.80629476,3018.6,3018.5,4.99695298]
[1633052104735,10.80629476,3018.6,3018.5,0.02739298]
[1633052106138,10.80629476,3018.6,3018.3,9.93868]
[1633052106339,11.00994375,3018.6,3018.3,9.93868]
[1633052107941,10.80629476,3018.6,3018.4,5.02336274]
[1633052108140,10.80629476,3018.6,3018.4,1.05368274]
[1633052108340,10.80629476,3018.6,3018.4,0.05368274]
[1633052109140,10.80629476,3018.6,3018.0,5.97047007]
[1633052109141,0.20364002,3018.5,3018.0,5.97047007]
[1633052109342,0.20364002,3018.5,3018.1,3.3131932]
[1633052109602,0.01016447,3018.3,3018.1,4.3131932]
[1633052110142,0.01016447,3018.3,3018.1,6.10444661]
[1633052110343,0.01016447,3018.3,3018.1,6.92378514]
[1633052110541,0.01016447,3018.3,3018.2,11.094]
[1633052110741,0.01016447,3018.3,3018.2,12.0915]
[1633052110945,0.01016447,3018.3,3018.2,10.7975]
[1633052111545,0.01016447,3018.3,3018.2,12.0915]
[1633052112143,0.01016447,3018.3,3018.2,10.294]
[1633052113543,0.01016447,3018.3,3018.2,10.34773669]
[1633052113742,0.01016447,3018.3,3018.2,11.80380561]
[1633052114543,0.01016447,3018.3,3018.2,16.71926892]
[1633052114544,0.21375884,3018.3,3018.2,16.71926892]
[1633052114743,0.21375884,3018.3,3018.2,36.09926892]
[1633052115945,0.21375884,3018.3,3018.2,16.71926892]
[1633052116149,0.21375884,3018.3,3018.2,15.42526892]
[1633052116545,0.21375884,3018.3,3018.2,16.71926892]
[1633052117948,0.21375884,3018.3,3018.2,15.42526892]
[1633052118151,0.21375884,3018.3,3018.2,16.71926892]
[1633052118348,0.21375884,3018.3,3018.2,13.9692]
[1633052118750,0.21375884,3018.3,3018.2,4.9692]
[1633052118948,0.01016447,3018.3,3018.2,5.02293669]
[1633052119951,0.21375931,3018.3,3018.2,6.56780284]
[1633052120149,0.21375931,3018.3,3018.2,8.4818589]
[1633052120349,0.21375931,3018.3,3018.2,16.4818589]
[1633052121451,0.21375931,3018.3,3018.2,17.7758589]
[1633052124455,9.19364027,3018.6,3018.3,8.95]
[1633052124715,9.19364027,3018.6,3018.4,4.6062297]
[1633052124915,9.19364027,3018.6,3018.4,4.3122297]
[1633052125517,0.20364144,3018.5,3018.4,4.3122297]
[1633052125716,0.0544989,3018.9,3018.6,5.7135074]
[1633052126019,0.003,3019.0,3018.9,10.05]
[1633052126221,0.003,3019.5,3019.0,10.45]
[1633052126417,0.003,3019.5,3019.4,10.526128]
[1633052126618,0.003,3019.5,3019.4,1.887328]
[1633052126819,0.003,3019.5,3019.4,4.70954528]
[1633052127018,0.003,3019.5,3019.4,19.38750324]
[1633052127218,0.003,3019.5,3019.4,20.68150324]
[1633052128220,0.006,3019.7,3019.4,40.06150324]
[1633052128419,0.006,3019.7,3019.5,7.13425774]
[1633052128622,0.006,3019.7,3019.5,1.52934695]
[1633052128820,0.006,3019.7,3019.5,1.45534911]
[1633052129020,0.59142778,3021.3,3019.6,10.45]
[1633052129220,0.59142778,3021.3,3020.5,0.079913]
[1633052129221,0.006,3021.3,3020.5,0.079913]
[1633052129421,0.006,3021.3,3020.5,1.749913]
[1633052129621,0.006,3021.3,3020.6,3.83156124]
[1633052129824,0.006,3021.3,3020.7,0.15482969]
[1633052130022,1.80263805,3020.8,3020.7,1.15482969]
[1633052130423,1.80263805,3020.8,3020.7,0.15482969]
[1633052130822,1.80263805,3020.8,3020.5,1.003]
[1633052131025,1.80263805,3020.8,3020.5,1.97076426]
[1633052131026,0.10224516,3020.8,3020.5,1.97076426]
[1633052131225,0.10224516,3020.8,3020.6,3.31067]
[1633052131423,0.10224516,3020.8,3020.7,5.96592]
[1633052132622,0.10224516,3020.8,3020.7,1.0]
[1633052132822,0.10224516,3020.8,3020.6,3.31067]
[1633052134227,0.10224516,3020.8,3020.6,8.27664]
[1633052134425,0.10224516,3020.8,3020.7,1.0]
[1633052134724,0.10224516,3020.8,3020.5,0.003]
[1633052134725,1.39624516,3020.8,3020.5,0.003]
[1633052134925,0.10224516,3020.8,3020.5,0.003]
[1633052135123,0.006,3021.3,3020.0,1.003]
[1633052135124,1.93751557,3020.7,3020.6,0.15489701]
[1633052136329,0.006,3021.2,3020.6,0.15489701]
[1633052136525,0.006,3021.2,3020.5,3.3107395]
[1633052136526,0.10222722,3020.7,3020.5,3.3107395]
[1633052136926,0.10222722,3020.7,3020.5,3.3137395]
[1633052137326,0.10222722,3020.7,3020.6,1.0]
[1633052138126,0.10222722,3020.7,3020.5,3.3137395]
[1633052138527,0.10408106,3020.7,3020.5,8.2799595]
[1633052139330,0.10408106,3020.7,3020.6,1.0]
[1633052140733,0.00185384,3020.7,3020.5,8.2799595]
[1633052140931,0.00185384,3020.7,3020.6,0.15491048]
[1633052141837,1.49022141,3020.8,3020.5,0.003]
[1633052142032,1.5262035,3020.7,3020.5,0.003]
[1633052142231,5.25,3020.6,3019.7,3.11008903]
[1633052142432,5.25,3020.6,3019.8,0.006]
[1633052142631,0.10221848,3020.7,3019.8,0.006]
[1633052142831,0.10221848,3020.7,3020.2,4.96639]
[1633052143233,0.10221848,3020.7,3020.3,0.003]
[1633052143433,0.10221848,3020.7,3020.3,1.003]
[1633052143831,0.10221848,3020.7,3020.4,0.003]
[1633052144035,0.10221848,3020.7,3020.4,8.003]
[1633052144236,0.10221848,3020.7,3020.4,12.96937]
[1633052144433,0.10221848,3020.7,3020.5,0.003]
[1633052145434,0.10221848,3020.7,3020.3,0.003]
[1633052146236,1.49022141,3020.8,3020.4,0.15493741]
[1633052146436,1.32325405,3020.7,3020.4,0.15493741]
[1633052146638,1.32325405,3020.7,3020.5,0.003]
[1633052146837,1.49022141,3020.8,3020.5,0.003]
[1633052147037,1.49022141,3020.8,3020.6,0.7561377]
[1633052147437,1.59245878,3020.8,3020.6,0.7561377]
[1633052148437,0.10223737,3020.8,3020.6,0.7561377]
[1633052149438,0.10223737,3020.8,3020.5,0.003]
[1633052149439,1.97667563,3020.7,3020.5,0.003]
[1633052149838,1.97667563,3020.7,3020.6,3.31089]
[1633052150440,1.97667563,3020.7,3020.6,4.18674233]
[1633052151041,0.10223737,3020.8,3020.6,4.18674233]
[1633052151641,0.006,3021.2,3020.7,0.15488355]
[1633052151843,1.294,3021.0,3020.7,0.15488355]
[1633052152043,1.63236173,3021.1,3020.7,0.15488355]
[1633052152641,2.20157191,3021.1,3020.7,0.15488355]
[1633052152843,1.73463642,3021.1,3020.4,0.003]
[1633052153041,0.31726207,3021.0,3020.4,0.003]
[1633052153239,0.31726207,3021.0,3020.3,0.003]
[1633052153441,5.28434207,3021.0,3020.3,0.003]
[1633052153841,5.18434207,3021.0,3020.3,0.003]
[1633052154241,1.98197329,3020.4,3020.3,0.003]
[1633052155643,0.10227469,3021.1,3020.3,4.30661471]
[1633052155844,0.10227469,3021.1,3020.9,0.079913]
[1633052156044,0.10227469,3021.1,3020.5,1.0]
[1633052156243,0.10227469,3021.1,3020.5,1.003]
[1633052156645,2.02002832,3020.8,3020.5,1.003]
[1633052157243,2.02002832,3020.8,3020.6,0.15489701]
[1633052158446,2.12226664,3020.8,3020.5,0.003]
[1633052158846,2.12226664,3020.8,3020.4,6.6222662]
[1633052160051,2.12226664,3020.8,3020.4,11.5888662]
[1633052160249,2.12226664,3020.8,3020.4,6.6222662]
[1633052160650,2.12226664,3020.8,3020.4,14.6222662]
[1633052160855,2.12226664,3020.8,3020.4,6.6222662]
[1633052161053,0.10223832,3020.8,3020.4,14.6222662]
[1633052161252,0.10223832,3020.8,3020.4,6.6222662]
[1633052161652,0.10223832,3020.8,3020.6,4.96624]
[1633052162053,0.10223832,3020.8,3020.5,14.62395]
[1633052162255,0.10223832,3020.8,3020.7,1.91195428]
[1633052162655,0.006,3021.2,3020.9,4.96514]
[1633052162854,0.006,3021.2,3021.0,3.310091]
[1633052163253,1.52970188,3021.1,3021.0,3.310091]
[1633052163454,0.006,3021.2,3021.0,3.310091]
[1633052163856,0.10831247,3021.2,3021.0,3.310091]
[1633052164656,0.84184991,3021.1,3020.6,1.0]
[1633052164860,12.57145141,3020.8,3020.5,0.003]
[1633052165057,12.57145141,3020.8,3019.5,0.003]
[1633052165058,1.24528424,3019.8,3019.5,0.003]
[1633052165457,1.24528424,3019.8,3019.1,0.003]
[1633052165857,1.96407538,3019.2,3019.1,0.003]
[1633052166056,1.96407538,3019.2,3019.0,0.006]
[1633052167258,1.96407538,3019.2,3019.1,4.9688]
[1633052167658,1.96407538,3019.2,3019.1,4.9718]
[1633052167859,1.24528424,3019.8,3019.1,4.9718]
[1633052168059,1.24528424,3019.8,3019.4,3.31245]
[1633052168258,1.24528424,3019.8,3019.4,8.28078]
[1633052168459,1.24528424,3019.8,3019.5,0.003]
[1633052169058,1.62760513,3019.7,3019.5,0.003]
[1633052169662,1.7296417,3019.7,3019.5,0.003]
[1633052172060,0.10203657,3019.7,3019.5,0.003]
[1633052172260,0.10203657,3019.7,3019.5,4.97099]
[1633052172860,0.10203657,3019.7,3019.5,0.003]
[1633052173660,1.88865001,3019.6,3019.5,0.003]
[1633052173864,1.83865001,3019.6,3019.5,0.003]
[1633052174262,1.24528424,3019.8,3019.5,0.003]
[1633052174663,1.14528424,3019.8,3019.5,0.003]
[1633052174861,0.10203705,3019.7,3019.5,0.003]
[1633052175263,1.98639175,3019.6,3019.5,0.003]
[1633052178721,0.10203705,3019.7,3019.5,0.003]
[1633052179120,1.14528424,3019.8,3019.6,0.15517991]
[1633052179920,2.01802691,3019.7,3019.6,0.15517991]
[1633052180322,2.01802691,3019.7,3019.5,0.003]
[1633052180524,2.12007365,3019.7,3019.5,0.003]
[1633052180922,0.10204674,3019.7,3019.5,0.003]
[1633052181925,1.72752599,3019.7,3019.5,0.003]
[1633052184626,1.62547925,3019.7,3019.5,0.003]
[1633052184827,1.62547925,3019.7,3019.6,0.15517991]
[1633052185831,1.62547925,3019.7,3019.5,0.003]
[1633052186028,1.72752646,3019.7,3019.5,0.003]
[1633052190134,1.62547925,3019.7,3019.5,0.003]
[1633052190334,1.62547925,3019.7,3019.6,0.15517991]
[1633052191335,1.62547925,3019.7,3019.5,0.003]
[1633052191536,1.72752694,3019.7,3019.5,0.003]
[1633052192137,1.72752694,3019.7,3019.6,0.78813519]
[1633052192536,1.72752694,3019.7,3019.5,0.003]
[1633052192738,0.10204769,3019.7,3019.5,0.003]
[1633052192936,0.10204769,3019.7,3019.5,1.064422]
[1633052193137,0.10204769,3019.7,3019.5,5.032532]
[1633052193338,0.10204769,3019.7,3019.5,5.97111]
[1633052193637,0.10204769,3019.7,3019.5,0.003]
[1633052194040,0.10204769,3019.7,3019.5,1.003]
[1633052194238,0.10204769,3019.7,3019.5,0.003]
[1633052195643,1.14528424,3019.8,3019.6,0.15517991]
[1633052196443,1.14528424,3019.8,3019.7,1.294]
[1633052196644,1.14528424,3019.8,3019.7,9.48986489]
[1633052196844,1.14528424,3019.8,3019.7,6.325724]
[1633052197045,1.14528424,3019.8,3019.7,6.29729994]
[1633052197243,1.14528424,3019.8,3019.7,17.32771249]
[1633052197244,0.35258424,3019.8,3019.7,17.32771249]
[1633052197446,0.35258424,3019.8,3019.7,15.59129994]
[1633052197644,0.003,3020.5,3020.1,4.96659]
[1633052197844,0.003,3020.5,3020.4,0.079913]
[1633052198445,0.003,3020.5,3020.2,3.3108143]
[1633052198645,1.49872306,3020.5,3020.4,0.737567]
[1633052198844,2.92558512,3020.5,3020.4,5.704017]
[1633052199443,1.49872306,3020.5,3020.4,5.704017]
[1633052199845,0.003,3020.5,3020.4,5.704017]
[1633052202446,0.10519606,3020.5,3020.4,5.704017]
[1633052202646,0.10519606,3020.5,3020.4,4.96645]
[1633052202847,1.53245504,3020.5,3020.4,4.96645]
[1633052203447,0.10519606,3020.5,3020.4,5.96645]
[1633052204045,0.10519606,3020.5,3020.4,6.73474394]
[1633052205647,0.10519606,3020.5,3020.4,5.96645]
[1633052206447,0.003,3020.5,3020.4,5.96645]
[1633052206647,0.003,3020.5,3020.4,6.8275845]
[1633052207852,0.10519653,3020.5,3020.4,6.8275845]
[1633052208053,0.05519653,3020.5,3020.4,6.8275845]
[1633052208250,6.6202,3020.8,3020.4,11.09842343]
[1633052208452,6.6202,3020.8,3020.7,0.079913]
[1633052209051,6.6202,3020.8,3020.7,1.64590766]
[1633052209252,6.6202,3020.8,3020.7,2.93990766]
[1633052209453,6.6202,3020.8,3020.7,8.90502766]
[1633052209654,0.0002433,3020.8,3020.7,16.90502766]
[1633052210055,0.0002433,3020.8,3020.7,15.339033]
[1633052210255,0.003,3021.0,3020.7,15.339033]
[1633052210455,0.003,3021.0,3020.8,7.25903]
[1633052210655,0.003,3021.0,3020.8,5.96503]
[1633052210856,0.003,3021.0,3020.9,0.96613647]
[1633052211257,0.003,3021.0,3020.9,2.48539852]
[1633052211658,0.003,3021.0,3020.9,0.96613647]
[1633052212059,0.003,3021.0,3020.9,1.17206442]
[1633052212657,0.003,3021.0,3020.9,2.9341869]
[1633052212856,0.003,3021.0,3020.9,8.27695726]
[1633052213056,0.003,3021.0,3020.9,15.05537808]
[1633052213456,0.05418164,3021.0,3020.9,14.84945013]
[1633052213657,0.05418164,3021.0,3020.9,11.72825895]
[1633052213859,0.05418164,3021.0,3020.9,9.96613647]
[1633052214059,0.05418164,3021.0,3020.9,11.26013647]
[1633052214256,0.05418164,3021.0,3020.9,1.96613647]
[1633052216157,0.05418164,3021.0,3020.9,3.26013647]
[1633052216562,0.05418164,3021.0,3020.9,1.96613647]
[1633052216757,0.006,3021.2,3021.0,5.05]
[1633052216958,0.006,3021.2,3021.1,1.0]
[1633052217158,0.006,3021.2,3021.1,7.61995]
[1633052217558,0.006,3021.2,3021.1,15.61995]
[1633052217962,1.43107686,3021.2,3021.0,0.23147838]
[1633052218160,1.42509,3021.1,3021.0,0.23147838]
[1633052218961,1.45070891,3021.1,3020.9,1.85498918]
[1633052219161,0.02561891,3021.1,3020.9,5.16559028]
[1633052219962,0.02561891,3021.1,3021.0,4.31031]
[1633052220160,0.02561891,3021.1,3021.0,3.31031]
[1633052220962,0.02561891,3021.1,3021.0,4.31031]
[1633052221162,0.02561891,3021.1,3021.0,9.27538]
[1633052221563,0.47935231,3021.5,3021.0,9.27538]
[1633052221765,0.47935231,3021.5,3021.0,4.31031]
[1633052221964,0.47935231,3021.5,3021.0,3.31331]
[1633052222163,1.42374528,3021.6,3021.1,8.27583]
[1633052222369,0.006,3021.8,3021.3,3.3101105]
[1633052222370,1.42354588,3021.5,3021.3,3.3101105]
[1633052222566,0.006,3021.7,3021.3,3.3101105]
[1633052222567,1.42355053,3021.4,3021.3,3.3101105]
[1633052222764,0.95708896,3021.7,3021.3,3.3101105]
[1633052222765,1.42354474,3021.6,3021.3,3.3101105]
[1633052222964,1.43801387,3021.5,3021.4,0.24418014]
[1633052223164,2.86155618,3021.5,3021.4,0.24418014]
[1633052224366,1.42354231,3021.5,3021.4,4.96513]
[1633052224565,1.44148707,3021.5,3021.4,4.96513]
[1633052225369,3.17511356,3021.5,3021.4,4.96513]
[1633052227369,3.17511356,3021.5,3021.3,14.6201205]
[1633052227570,1.42283542,3021.4,3021.3,11.3101105]